Cogmind - Beta 13 @@@ ROGUE MODE // 2024.04.16 @ 22:44:59 Player: SVIT13 Result: Destroyed by Autobeam Turret with Autobeam Performance ------------- Evolutions (0) 0 Regions Visited (3) 600 Robots Destroyed (45) 225 Value Destroyed (857) 857 Prototype IDs (2) 40 Alien Tech Used (0) 0 Bonus (0) 0 TOTAL SCORE: 1722 Bonus ------- None Cogmind --------- Core Integrity 0/250 Matter 265/300 Energy 93/100 System Corruption 0% Temperature Cool (19) Movement Flying (270) Ox3 Location -10/Subcaves Parts ------- > --- POWER (1) -------- (None) > --- PROPULSION (2) --- Light Treads Improved Flight Unit > --- UTILITY (2) ------ Large Storage Unit > --- WEAPON (2) ------- (None) > --- INVENTORY (15) --- Ion Engine Light Ion Engine Improved Flight Unit Medium Storage Unit Improved Terrain Scanner Core Shielding Small Laser Datajack Mining Laser Scrap Shield Fragment (48) Peak State ------------ > --- POWER ------------ Light Nuclear Core > --- PROPULSION ------- Wheel Wheel > --- UTILITY ---------- Large Storage Unit Experimental Sensor Array > --- WEAPON ----------- Particle Gun Light Cannon > --- INVENTORY -------- Ion Engine Light Ion Engine Light Treads Light Treads Wheel Improved Flight Unit Improved Flight Unit Medium Storage Unit Improved Terrain Scanner Core Shielding Small Laser Assault Rifle Datajack Mining Laser [Rating: 20] Favorites ----------- Power Light Nuclear Core Engine Ion Engine Power Core Light Nuclear Core Propulsion Light Treads Treads Light Treads Wheel Wheel Flight Unit Improved Flight Unit Utility Large Storage Unit Device Experimental Sensor Array Storage Large Storage Unit Processor Visual Processing Unit Protection Core Shielding Weapon Light Cannon Energy Gun Particle Gun Ballistic Gun Assault Rifle Ballistic Cannon Light Cannon Special Weapon Mining Laser Special Melee Weapon Datajack Build | -11 -10 -10 -10 ------- Run | Yrd Mat Min Sub Slots Evolved . | . . . . Power . | . . . . Propulsion . | . . . . Utility . | . . . . Weapon . | . . . . Parts Attached 45 | 7 16 10 12 Power 4 | 1 1 2 . Engine 2 | 1 . 1 . Core 2 | . 1 1 . Reactor . | . . . . Propulsion 19 | 2 7 3 7 Treads 9 | 2 4 . 3 Leg . | . . . . Wheel 8 | . 2 3 3 Hover . | . . . . Flight 2 | . 1 . 1 Utility 11 | 2 5 3 1 Device 4 | 1 . 2 1 Storage 3 | 1 2 . . Processor 3 | . 2 1 . Hackware . | . . . . Protection 1 | . 1 . . Artifact . | . . . . Weapon 11 | 2 3 2 4 Energy Gun 4 | 1 1 2 . Energy Cannon . | . . . . Ballistic Gun 3 | 1 1 . 1 Ballistic Cannon 2 | . 1 . 1 Launcher . | . . . . Special Weapon 1 | . . . 1 Impact Weapon . | . . . . Slashing Weapon . | . . . . Piercing Weapon . | . . . . Special Melee Weapon 1 | . . . 1 Unidentified Prototypes 2 | . 1 1 . Parts Lost 15 | . 3 3 9 Power 2 | . . 1 1 Propulsion 6 | . 1 1 4 Utility 2 | . 1 . 1 Weapon 5 | . 1 1 3 Highest Loss Streak 8 | . 1 1 8 To Critical Strikes . | . . . . Average Slot Usage (%) 97 | . 94 98 96 Engine 4 | . 1 8 . Core 8 | . 12 5 13 Treads 16 | . 21 19 4 Wheel 10 | . 5 8 21 Device 9 | . 3 11 14 Storage 14 | . 14 14 14 Processor 2 | . 5 2 . Energy Gun 10 | . 3 13 13 Ballistic Gun 6 | . 20 . . Ballistic Cannon 10 | . 2 14 11 Naked Turns . | . . . . Heaviest Build 32 | 13 30 32 32 Greatest Support 40 | 40 40 40 40 Greatest Overweight (x) 5 | . 5 1 3 Average Overweight (x) . | . . . . Largest Inventory Capacity 15 | 8 15 15 15 Average Capacity 14 | 7 12 15 15 Most Carried 15 | 3 13 14 15 Average Carried 10 | . 7 12 14 Final Capacity 15 | 8 15 15 15 Final Carried 14 | . 13 14 10 Class Distribution -------------------- 65% | Mutant 34% | Scavenger-Mutant Dominant Class ---------------- Mutant | -10/Materials Mutant | -10/Mines Scavenger-Mutant | -10/Subcaves Resources | -11 -10 -10 -10 ----------- Run | Yrd Mat Min Sub Matter Collected 1122 | 291 376 338 117 Remotely . | . . . . Salvage Created 1246 | 136 654 379 77 Parts 92 | 7 44 32 9 Haulers Intercepted 2 | . 2 . . Recyclers Shooed 1 | . . 1 . Parts Field Recycled . | . . . . Retrieved Matter . | . . . . Parts Self-Destructed 12 | . . . 12 Prevented . | . . . . Kills | -11 -10 -10 -10 ------- Run | Yrd Mat Min Sub Combat Hostiles Destroyed 31 | . 13 12 6 Guns 23 | . 13 4 6 Cannons 8 | . . 8 . Classes Destroyed 10 | 2 5 2 1 Worker 5 | . 1 4 . Builder 2 | . . 2 . Tunneler 3 | 2 . 1 . Hauler 2 | . 2 . . Recycler 1 | 1 . . . Watcher 2 | . 2 . . Swarmer 13 | . 3 6 4 Grunt 16 | . 10 5 1 Subdweller 1 | . . . 1 Assembled 1 | . . 1 . Best Kill Streak 4 | 3 4 3 4 Combat Bots Only 4 | . 4 3 4 Max Kills in Single Turn 2 | 1 1 2 1 Gunslinging . | . . . . Exploded . | . . . . Melee . | . . . . Uniques/NPCs Destroyed . | . . . . Combat | -11 -10 -10 -10 -------- Run | Yrd Mat Min Sub Hostile Shots Fired 224 | . 52 73 99 Missed 68 | . 14 19 35 Damage Taken 1501 | . 416 573 512 Core 251 | . 50 66 135 Absorbed by Shields . | . . . . Core Remaining (%) 100 | 100 . . . Volleys Fired 152 | 7 59 56 30 Largest 2 | 2 2 2 2 Hottest 165 | 60 60 100 165 Shots Fired 255 | 14 94 100 47 Gun 185 | 14 94 44 33 Cannon 65 | . . 56 9 Launcher . | . . . . Special 5 | . . . 5 Kinetic 170 | 7 77 64 22 Thermal 68 | . 7 36 25 Explosive . | . . . . Electromagnetic 17 | 7 10 . . Robot Hit Streak 16 | 2 16 8 5 Robot Miss Streak 6 | 4 6 3 3 Penetration Max . | . . . . Secondary Targets . | . . . . Shots Hit Robots 155 | 6 67 54 28 Core Hits 63 | 3 29 23 8 Critical Kills 1 | . 1 . . Critical Parts Destroyed . | . . . . Critical Strikes 4 | . 1 2 1 Burn 1 | . . 1 . Destroy 1 | . 1 . . Blast 2 | . . 1 1 Melee Attacks 1 | . . . 1 Impact . | . . . . Slashing . | . . . . Piercing . | . . . . Sneak Attacks . | . . . . Combat Hostiles . | . . . . Follow-up Attacks . | . . . . Damage Inflicted 2315 | 84 886 910 435 Guns 1627 | 84 886 357 300 Cannons 640 | . . 553 87 Explosions . | . . . . Melee . | . . . . Ramming . | . . . . Kinetic 1509 | 26 717 601 165 Thermal 624 | . 45 309 270 Explosive . | . . . . Electromagnetic 182 | 58 124 . . Impact . | . . . . Slashing . | . . . . Piercing . | . . . . Highest Corruption . | . . . . Average Corruption . | . . . . Corruption Purged . | . . . . Corruption Blocked . | . . . . Overload Shots . | . . . . Overflow Damage 16 | . . 16 . Projectiles 16 | . . 16 . Explosions . | . . . . Melee . | . . . . Knockbacks 5 | . . 5 . Impact . | . . . . Kinetic 5 | . . 5 . Secondary . | . . . . Self-Inflicted Damage . | . . . . Shots . | . . . . Rammed . | . . . . Targets Rammed . | . . . . Kicked . | . . . . Crushed . | . . . . Highest Temperature 387 | . 54 387 15 Average Temperature 62 | . 14 85 4 Received Heat Transfer 744 | . 216 210 318 Effects 1 | . . 1 . Shutdowns 1 | . . 1 . Siege Activations . | . . . . Robots Corrupted . | . . . . Combat Hostiles . | . . . . Parts Fried . | . . . . Impact Corruptions . | . . . . Robots Melted . | . . . . Combat Hostiles . | . . . . Parts Melted 1 | . . 1 . Heat Transferred 1496 | . 100 778 618 Parts Sabotaged . | . . . . Parts Stolen . | . . . . Parts Stripped . | . . . . Power Chain Reactions . | . . . . Alert | -11 -10 -10 -10 ------- Run | Yrd Mat Min Sub Peak Influence 266 | 15 266 185 . Initial 9 | . 9 . . Average 67 | 8 98 55 . Maximum Alert Level 1 | . 1 . . Low Security (%) 96 | 100 88 100 . Level 1 3 | . 11 . . Level 2 . | . . . . Level 3 . | . . . . Level 4 . | . . . . Level 5 . | . . . . High Security . | . . . . Max Security . | . . . . Squads Dispatched 2 | . 2 . . Investigation 1 | . 1 . . Extermination . | . . . . Reinforcement 1 | . 1 . . Assault . | . . . . Garrison . | . . . . Intercept . | . . . . Searches Triggered . | . . . . Construction Impeded . | . . . . Haulers Reinforced . | . . . . Active Scanning Responses . | . . . . Cargo Convoy Interrupts . | . . . . Stealth | -11 -10 -10 -10 --------- Run | Yrd Mat Min Sub Distress Signals 3 | . 2 1 . Communications Jammed . | . . . . Distress Signals . | . . . . Times Spotted 101 | . 22 17 62 Peak Tracking Total 4 | . 4 3 3 Tactical Retreats 10 | . 1 3 6 Traps | -11 -10 -10 -10 ------- Run | Yrd Mat Min Sub Traps Triggered . | . . . . Indirectly . | . . . . Trap Hack Attempts . | . . . . Triggered . | . . . . Disarmed . | . . . . Reprogrammed . | . . . . Reused . | . . . . Traps Extracted . | . . . . Installed . | . . . . Triggered . | . . . . Machines | -11 -10 -10 -10 ---------- Run | Yrd Mat Min Sub Machines Disabled 1 | . . . 1 Max in Single Turn 1 | . . . 1 Machines Repaired . | . . . . Machines Dismantled . | . . . . Machines Sabotaged . | . . . . Overloaded Fab Kills . | . . . . Hacking | -11 -10 -10 -10 --------- Run | Yrd Mat Min Sub Machines Accessed 7 | . 6 . 1 Terminals 6 | . 6 . . Fabricators . | . . . . Repair Stations . | . . . . Recycling Units . | . . . . Scanalyzers . | . . . . Garrison Access . | . . . . Total Hacks 14 | . 13 . 1 Successful 6 | . 5 . 1 Failed 8 | . 8 . . Catastrophic 3 | . 3 . . Database Lockouts . | . . . . Manual 3 | . 3 . . Terminals 13 | . 13 . . Fabricators . | . . . . Repair Stations . | . . . . Recycling Units . | . . . . Scanalyzers . | . . . . Garrison Access . | . . . . Terminal Hacks 6 | . 5 . 1 Record 1 | . . . 1 Alert Level 2 | . 2 . . Unreport Threat 1 | . 1 . . Locate Traps 1 | . 1 . . Zone Layout 1 | . 1 . . Fabricator Hacks . | . . . . Repair Station Hacks . | . . . . Recycling Unit Hacks . | . . . . Scanalyzer . | . . . . Garrison Access Hacks . | . . . . Unauthorized Hacks . | . . . . Terminals . | . . . . Fabricators . | . . . . Repair Stations . | . . . . Recycling Units . | . . . . Scanalyzers . | . . . . Garrison Access . | . . . . Data Cores Recovered . | . . . . Used . | . . . . Hacking Detections 5 | . 5 . . Full Trace Events 1 | . 1 . . Feedback Events . | . . . . Feedback Blocked . | . . . . Robot Schematics Acquired . | . . . . Robots Built . | . . . . Authchips . | . . . . Time . | . . . . Total Robot Build Rating . | . . . . Part Schematics Acquired . | . . . . Parts Built . | . . . . Authchips . | . . . . Time . | . . . . Total Part Build Rating . | . . . . Parts Repaired . | . . . . Time . | . . . . Parts Recycled . | . . . . Recycled Matter . | . . . . Retrieved Matter . | . . . . Retrieved Components . | . . . . Parts Scanalyzed . | . . . . Part Schematics Acquired . | . . . . Parts Damaged . | . . . . Bothacking | -11 -10 -10 -10 ------------ Run | Yrd Mat Min Sub Used RIF Installer . | . . . . Robots Hacked 1 | . . . 1 Non-combat . | . . . . Combat 1 | . . . 1 Robot Hacks Applied 1 | . . . 1 parse_system 1 | . . . 1 Relay Couplers Released . | . . . . Fabnet Peak Effective % . | . . . . Robots Rewired . | . . . . Allies Hacked . | . . . . Hacks Repelled . | . . . . Allies | -11 -10 -10 -10 -------- Run | Yrd Mat Min Sub Total Allies 1 | . . 1 . Largest Group 1 | . . 1 . Highest-Rated Group 31 | . . 31 . Highest-Rated Ally 31 | . . 31 . Total Orders . | . . . . Ally Attacks . | . . . . Total Damage . | . . . . Kills . | . . . . Allies Corrupted . | . . . . Allies Melted . | . . . . Intel | -11 -10 -10 -10 ------- Run | Yrd Mat Min Sub Robot Analysis Total . | . . . . Derelict Logs Recovered 2 | . . 2 . Drone Launches . | . . . . Drone Recoveries . | . . . . Exploration | -11 -10 -10 -10 ------------- Run | Yrd Mat Min Sub Turns Passed 3755 | 148 982 1893 732 Spaces Moved 2158 | 74 537 1069 478 Core 4 | 4 . . . Treads 1127 | 70 411 575 71 Legs . | . . . . Wheels 1023 | . 125 494 404 Hover . | . . . . Flight 4 | . 1 . 3 Fastest Speed 50 | 50 80 95 95 Average Speed 129 | 154 143 130 106 Slowest Speed 410 | 160 410 240 270 Overloaded Moves . | . . . . Propulsion Burnouts . | . . . . Robots Hopped . | . . . . Cave-ins Triggered . | . . . . Exploration Rate (%) 54 | 4 84 100 31 Regions Visited 3 Branch Regions 2 Pre-discovered Areas . | . . . . Known Exits Taken . | . . . . Unknown Exits Taken 3 | 1 1 1 . Scrap Searched 2 | . . 2 . Spaces Dug . | . . . . Terrain Destroyed . | . . . . Melee . | . . . . Projectile . | . . . . AOE . | . . . . Terrain Rammed . | . . . . Walls Destroyed . | . . . . Machines Disabled . | . . . . Actions | -11 -10 -10 -10 --------- Run | Yrd Mat Min Sub Total 2849 | 94 648 1464 643 Wait 462 | . 17 324 121 Move 2155 | 73 536 1068 478 Hop . | . . . . Pick Up 32 | 7 18 6 1 Fast Attach . | . . . . Attach 18 | 7 2 4 5 Detach . | . . . . Swap 27 | . 14 6 7 Drop 2 | . 2 . . Fire 152 | 7 59 56 30 Melee 1 | . . . 1 Ram . | . . . . Kick . | . . . . Crush . | . . . . Escape Stasis . | . . . . Rewire . | . . . . Trap . | . . . . Miscellaneous . | . . . . Route ------- -11/Scrapyard -10/Materials (discovered 5 exits: *Mat x3 / [*Min x2]) -10/Mines (discovered 3 exits: *Mat x2 / *Sub) -10/Subcaves (discovered 1 exit: [*Rec]) History --------- Turn | Location | Event 28 | -11/Scrapyard | Discovered new exit (range 16) 149 | -11/Scrapyard | Entered Materials 149 | -10/Materials | Discovered new exit (range 14) 314 | -10/Materials | Build established: Mutant 378 | -10/Materials | Discovered new exit (range 11) 445 | -10/Materials | Discovered new exit (range 16) 689 | -10/Materials | Discovered new exit (range 16) 1016 | -10/Materials | Discovered new exit (range 16) 1131 | -10/Materials | Entered Mines 1150 | -10/Mines | Met a Derelict bent on vengeance 1434 | -10/Mines | Learned Materials stockpile data 1445 | -10/Mines | Found a damaged Exp. Sensor Array with a note attached 1448 | -10/Mines | Found Prototype Device 1449 | -10/Mines | Identified Exp. Sensor Array 1576 | -10/Mines | Discovered new exit (range 12) 1994 | -10/Mines | Identified exit to Materials 2314 | -10/Mines | Excavation squad dispatched 2314 | -10/Mines | A large section of the Mines collapsed 2667 | -10/Mines | Received a Mining Laser from a helpful Derelict 2724 | -10/Mines | Build established: Scavenger-Mutant 3018 | -10/Mines | Discovered new exit (range 5) 3024 | -10/Mines | Entered Subcaves 3096 | -10/Subcaves | Core integrity fell below 50% 3405 | -10/Subcaves | Visited Clippyterm 3669 | -10/Subcaves | Shifting Twisted Machinery released Enh. Flamer 3697 | -10/Subcaves | Discovered new exit (range 14) 3723 | -10/Subcaves | Core integrity fell below 20% 3756 | -10/Subcaves | Destroyed by Autobeam Turret with Autobeam Last Messages --------------- repair. 03697_ EXIT=FOUND 03699_ Lgt. Cannon destroyed. 03706_ S-10 Pest destroyed. 03710_ Subatomizers dissect the Flight Unit. 03710_ S-10 Pest destroyed. 03714_ Flight Unit fries itself beyond repair. 03715_ Acquired 18 matter. 03716_ Acquired 9 matter. 03716_ Lgt. Nuclear Core destroyed. 03718_ Flight Unit fries itself beyond repair. 03720_ Machine disabled. 03720_ Wheel destroyed. 03722_ Lgt. Assault Rifle fries itself beyond repair. 03724_ Particle Gun destroyed. 03730_ Destroyed Autobeam. 03748_ Wheel destroyed. 03748_ Assault Rifle destroyed. 03750_ Exp. Sensor Array destroyed. Map ----- +----------------------------------------------------+ | ?????????????????????????????????????????????????? | | ?????????????????????????????????????????????????? | | ?????????????????????????????????????????????????? | | ?????????????????????????????????????????????????? | | ?????????????????????????????????????????????????? | | #???????###??????????????????????????????????????? | | ##??????# #####??????????????????????????????????? | | ##?????## ## ##??????????##?????????????????????? | | ##????# #????????#?<####??????????????????? | | #????## ###??????"" "#?????????????????? | | #??#### ##????? " % #?????????????????? | | # #### ###??? t t "#?????????????????? | | # ##?? ??????????????????? | | ## ## #?? ???????????????????? | | ### ### #?? ????????????????????? | | ## #?# #??# ##???????????????????? | | ###### ## ##??# ######??????????????? | | ##????# # #??## #####??????????? | | ##?????# ## ##?# ??????????? | | ##??????# ### ### ??????????????? | | #???????## ?# #?????????????????????? | | ##????????# " ### " #?????????????????????? | | ####?????????"""##?# " #?????????????????????? | | ?????????????# ???## """ ##????????????????????? | | ??????????????" """ " ###??????????????????? | | ??????????????" "" "@ #??????????????????? | | ??????????????" ###"""" #????????????????? | | ??????????????????##""" " ###????????????????? | | ???????????????????##"" """ ##??????????????????? | | ????????????????????#####""""#???????????????????? | | ????????????????????????# """???????????????????? | | ????????????????????????"""" "#??????????????????? | | ???????????????????????? ##??????????????????? | | ???????????????????????? #???????????????????? | | ???????????????????????? ??????????????????????? | | ?????????????????????????????????????????????????? | | ?????????????????????????????????????????????????? | | ?????????????????????????????????????????????????? | | ?????????????????????????????????????????????????? | | ?????????????????????????????????????????????????? | | ?????????????????????????????????????????????????? | | ?????????????????????????????????????????????????? | | ?????????????????????????????????????????????????? | | ?????????????????????????????????????????????????? | | ?????????????????????????????????????????????????? | | ?????????????????????????????????????????????????? | | ?????????????????????????????????????????????????? | | ?????????????????????????????????????????????????? | | ?????????????????????????????????????????????????? | | ?????????????????????????????????????????????????? | +----------------------------------------------------+ Best States ------------- Heat Dissipation 25 Energy Generation 14 Energy Capacity 250 Matter Stores 300 Matter Capacity 300 Sight Range 18 Robot Scan Range 20 Terrain Scan Range 16 Terrain Scan Density 10 Core Shielding 20 Evasion (%) 44 Targeting Accuracy 6 Recoil Reduction 2 Item Schematics ----------------- None Robot Schematics ------------------ None Fabricated ------------ Nothing Alien Tech Used ----------------- None Achievements -------------- None Challenges ------------ None Game ------ Seed HugeResetPenetrator Manual? 0 Play Time 00:35:46 Cumulative 9.5 hours Start 2024.04.16 @ 22:06:56 End 2024.04.16 @ 22:44:59 Sessions 1 Manual Loads 0 Difficulty Rogue Special Mode None Game No. 15 Rogue 15 Adventurer 0 Explorer 0 Win Type - Total 0 Types 0/0/0/0/0/0/0/0/0 Lore% 4 Gallery% 12 Achievement% 12 Wizard Run 0 Options --------- Layout 1 ASCII 0 Keyboard 0 Movement Numpad Keybinds 0 Fullscreen 1 Font 24/Smallcaps Map View 50x35 Zoom Use 0% Tactical HUD 1 Map Filters NONE Filters NONE Steam 1 RUN: bca08464-ebd0-4ebf-b462-46f6ba955506